bitfinex/quotes_SOLUSD_20250129
["timestamp","ask_amount","ask_price","bid_price","bid_amount"]
[1738183564550,0.12549,234.85,234.8,0.03]
[1738183564742,0.12549,234.83,234.8,0.03]
[1738183564952,0.63875693,234.82,234.8,0.03]
[1738183565474,34.45300976,234.81,234.8,0.03]
[1738183565670,34.32751976,234.81,234.8,0.03]
[1738183566366,34.20202976,234.81,234.8,0.03]
[1738183566777,34.20202976,234.83,234.8,0.03]
[1738183566970,34.20202976,234.81,234.8,0.03]
[1738183567759,34.57849976,234.81,234.8,0.03]
[1738183568163,34.84078669,234.81,234.8,0.03]
[1738183568484,34.20202976,234.83,234.8,0.03]
[1738183568678,2.129,234.85,234.8,0.03]
[1738183568679,34.32751976,234.81,234.8,0.03]
[1738183568885,34.57849976,234.81,234.8,0.03]
[1738183569184,35.57849976,234.81,234.8,0.0001]
[1738183569372,36.57849976,234.81,234.8,0.0001]
[1738183569679,0.12549,234.77,234.66,0.03]
[1738183569883,34.20202976,234.75,234.67,23.776884]
[1738183570060,0.63875693,234.75,234.68,34.20202976]
[1738183570259,0.63875693,234.75,234.67,23.776884]
[1738183570460,34.20202976,234.73,234.66,0.03]
[1738183570682,0.63875693,234.72,234.66,0.03]
[1738183570886,34.20202976,234.77,234.69,34.20202976]
[1738183571080,0.63875693,234.76,234.7,23.776884]
[1738183571284,0.63875693,234.78,234.7,23.776884]
[1738183571484,34.20202976,234.77,234.68,0.63902268]
[1738183571661,34.20202976,234.75,234.66,4.2913]
[1738183571995,34.20202976,234.69,234.66,0.03]
[1738183572295,0.12549,234.72,234.66,0.03]
[1738183572296,36.70909976,234.67,234.66,0.03]
[1738183572589,36.45811976,234.67,234.66,0.03]
[1738183573085,36.70909976,234.67,234.66,0.03]
[1738183573386,37.34785669,234.67,234.66,0.03]
[1738183573787,1.0,234.62,234.56,0.03]
[1738183574086,1.0,234.62,234.42,0.66969103]
[1738183574087,0.12549,234.53,234.42,0.66969103]
[1738183574269,34.20202976,234.49,234.42,0.03]
[1738183574475,0.63875693,234.48,234.42,0.03]
[1738183574665,34.20202976,234.47,234.42,0.03]
[1738183574864,34.20202976,234.51,234.42,24.44675954]
[1738183575064,0.63875693,234.53,234.46,23.776884]
[1738183575363,34.84078669,234.65,234.51,34.20202976]
[1738183575566,0.63875693,234.65,234.58,34.20202976]
[1738183575766,0.63875693,234.65,234.51,6.3614]
[1738183575972,0.37647,234.66,234.52,0.63952932]
[1738183576171,0.63875693,234.65,234.47,1.71185168]
[1738183576367,0.63875693,234.65,234.55,28.040284]
[1738183576659,0.63875693,234.66,234.55,0.63937894]
[1738183576873,34.20202976,234.66,234.57,34.20202976]
[1738183577087,0.63875693,234.65,234.57,34.20202976]
[1738183577386,34.20202976,234.64,234.56,23.776884]
[1738183577685,34.20202976,234.6,234.51,34.20202976]
[1738183577889,34.20202976,234.54,234.46,5.04]
[1738183578091,34.20202976,234.48,234.46,1.0]
[1738183578384,34.20202976,234.48,234.42,0.03]
[1738183578591,43.776884,234.56,234.42,0.03]
[1738183578794,34.20202976,234.43,234.42,0.03]
[1738183579000,34.20202976,234.43,234.42,0.0001]
[1738183579291,34.20202976,234.43,234.27,34.20202976]
[1738183579292,20.0,234.38,234.24,1.0]
[1738183579470,7.7291,234.42,234.23,6.36579173]
[1738183579471,34.20202976,234.25,234.23,6.36579173]
[1738183580179,0.12549,234.26,234.23,6.36579173]
[1738183580691,34.20202976,234.27,234.23,6.39579173]
[1738183580893,34.20202976,234.27,234.23,0.03]
[1738183581092,34.20202976,234.31,234.24,1.0]
[1738183581263,34.20202976,234.31,234.3,1.0]
[1738183581462,34.20202976,234.31,234.24,0.64030384]
[1738183581463,20.0,234.29,234.24,1.0]
[1738183581673,34.20202976,234.25,234.24,1.0]
[1738183581874,34.20202976,234.25,234.23,0.03]
[1738183582595,0.12549,234.24,234.23,0.03]
[1738183582804,0.37647,234.2,234.11,1.0]
[1738183582978,34.20202976,234.15,234.13,1.0]
[1738183583179,34.20202976,234.17,234.13,1.0]
[1738183583497,34.20202976,234.17,234.15,1.0]
[1738183583704,34.20202976,234.17,234.15,2.0]
[1738183583871,34.20202976,234.17,234.15,1.0]
[1738183584075,34.20202976,234.17,234.09,2.0]
[1738183584275,34.20202976,234.13,234.08,0.03]
[1738183584573,20.0,234.22,234.09,1.0]
[1738183584574,34.20202976,234.11,234.09,1.0]
[1738183584894,34.20202976,234.11,234.08,0.03]
[1738183585098,34.20202976,234.15,234.11,2.0]
[1738183585281,34.20202976,234.13,234.09,1.0]
[1738183585479,34.20202976,234.13,234.08,0.03]
[1738183585679,34.20202976,234.13,234.09,1.0]
[1738183585893,0.25098,234.17,234.13,2.0]
[1738183585894,34.20202976,234.17,234.13,2.0]
[1738183586100,34.20202976,234.15,234.13,1.0]
[1738183586278,0.12549,234.14,234.08,0.03]
[1738183586473,34.32751976,234.09,234.08,0.03]
[1738183586670,34.20202976,234.13,234.08,0.03]
[1738183586877,34.20202976,234.15,234.09,2.0]
[1738183587081,34.20202976,234.17,234.14,1.0]
[1738183587275,34.20202976,234.19,234.16,1.0]
[1738183587475,6.5804,234.32,234.23,1.0]
[1738183587682,36.33582976,234.33,234.28,1.0]
[1738183587983,36.33582976,234.33,234.18,0.12549]
[1738183587984,34.20202976,234.31,234.26,1.0]
[1738183588290,34.20202976,234.28,234.22,2.0]
[1738183588603,34.20202976,234.26,234.2,1.0]
[1738183588894,34.20202976,234.24,234.2,1.0]
[1738183589074,34.20202976,234.22,234.14,1.0]
[1738183589274,0.12549,234.19,234.14,1.0]
[1738183589475,34.20202976,234.18,234.14,1.0]
[1738183589679,0.12549,234.19,234.17,1.0]
[1738183590201,34.20202976,234.26,234.18,1.0]
[1738183590497,2.1342,234.27,234.18,1.0]
[1738183590498,36.33602976,234.3,234.24,1.0]
[1738183590699,34.20202976,234.3,234.29,1.0]
[1738183590879,34.20202976,234.3,234.26,1.0]
[1738183591077,34.20202976,234.32,234.31,1.0]
[1738183591295,34.20202976,234.34,234.31,1.0]
[1738183591481,34.20202976,234.36,234.33,1.0]
[1738183591683,34.20202976,234.4,234.37,1.0]
[1738183592002,34.20202976,234.4,234.36,1.0]
[1738183592378,0.12549,234.37,234.33,1.0]
[1738183592603,2.1332,234.39,234.35,1.0]
[1738183592780,34.20202976,234.36,234.29,1.0]
[1738183592984,34.20202976,234.36,234.25,1.0]
[1738183592985,34.20202976,234.3,234.25,1.0]
[1738183593188,34.20202976,234.28,234.27,1.0]
[1738183593396,34.20202976,234.28,234.23,1.0]
[1738183593580,34.20202976,234.24,234.2,1.0]
[1738183593789,0.12549,234.21,234.15,1.0]
[1738183594015,34.20202976,234.16,234.13,0.03]
[1738183594383,34.20202976,234.16,234.13,1.03]
[1738183594593,54.20202976,234.14,234.13,0.03]
[1738183594796,54.20202976,234.14,234.08,1.03]
[1738183594797,0.12549,234.1,234.08,0.03]
[1738183594986,34.32751976,234.09,234.08,0.03]
[1738183595317,2.1353,234.16,234.14,1.0]
[1738183595619,2.1353,234.16,234.08,0.03]
[1738183595620,0.37647,234.11,234.08,0.03]
[1738183595919,34.57849976,234.09,234.08,0.03]
[1738183596398,34.32751976,234.09,234.08,0.03]
[1738183596702,34.20202976,234.12,234.08,1.03]
[1738183596900,34.20202976,234.14,234.1,1.0]
[1738183597108,34.20202976,234.14,234.09,2.0]
[1738183597302,34.20202976,234.1,234.08,1.03]
[1738183597489,2.38628,234.16,234.12,1.0]
[1738183597490,34.20202976,234.14,234.12,1.0]
[1738183597686,34.20202976,234.16,234.12,1.0]
[1738183597885,34.20202976,234.18,234.15,1.0]
[1738183598104,5.3361,234.26,234.17,1.0]
[1738183598105,34.20202976,234.2,234.17,1.0]
[1738183598412,0.37647,234.17,234.09,1.0]
[1738183598612,0.37647,234.12,234.08,0.03]
[1738183598913,0.37647,234.05,233.98,1.0]
[1738183599212,0.37647,234.05,233.91,34.84296601]
[1738183599213,34.20202976,234.01,233.99,1.0]
[1738183599389,0.12549,234.0,233.96,1.0]
[1738183599805,34.20202976,234.01,233.98,1.0]
[1738183600407,34.20202976,234.05,234.01,1.0]
[1738183600720,34.20202976,234.03,234.0,1.0]
[1738183601025,0.12549,234.05,234.03,1.0]
[1738183601026,34.20202976,234.05,234.03,1.0]
[1738183601197,34.20202976,234.05,234.02,1.0]
[1738183601518,34.20202976,234.05,234.03,1.0]
[1738183602500,34.20202976,234.05,234.04,1.0]
[1738183602693,34.20202976,234.05,234.03,1.0]
[1738183603412,34.20202976,234.07,234.05,1.0]
[1738183603610,34.20202976,234.07,234.04,1.0]
[1738183603611,34.20202976,234.07,234.06,1.0]
[1738183603816,34.20202976,234.09,234.06,2.0]
[1738183603991,34.20202976,234.15,234.12,2.0]
[1738183604192,34.20202976,234.17,234.14,2.0]
[1738183604417,0.12549,234.14,234.1,1.0]
[1738183604599,34.20202976,234.12,234.11,1.0]
[1738183605118,34.20202976,234.12,234.09,1.0]
[1738183605320,34.20202976,234.1,234.07,2.0]
[1738183605520,34.20202976,234.12,234.11,2.0]
[1738183605690,0.12549,234.11,234.07,2.0]
[1738183605894,34.20202976,234.08,234.06,1.0]
[1738183606200,34.20202976,234.09,234.06,1.0]
[1738183606418,34.20202976,234.09,234.04,1.0]
[1738183606622,34.20202976,234.05,234.02,1.0]
[1738183606793,34.20202976,234.03,234.01,0.2776]
[1738183606989,2.1365,234.02,234.01,0.2776]
[1738183607190,2.26199,234.02,234.01,0.2776]
[1738183607411,2.1365,234.02,234.01,0.2776]
[1738183608796,6.0507,234.21,234.09,1.0]
[1738183608991,34.20202976,234.1,234.05,1.0]
[1738183609195,34.20202976,234.1,234.07,1.0]
[1738183610024,34.20202976,234.08,234.05,1.0]
[1738183610235,34.20202976,234.06,234.03,1.0]
[1738183610526,0.12549,234.05,234.03,1.0]
[1738183610729,34.20202976,234.06,234.05,1.0]
[1738183610903,34.20202976,234.1,234.09,1.0]
[1738183611214,34.20202976,234.1,234.07,2.0]
[1738183611410,34.32751976,234.1,234.09,1.0]
[1738183611618,34.20202976,234.17,234.15,2.0]
[1738183611821,34.20202976,234.24,234.23,1.0]
[1738183612023,34.20202976,234.26,234.21,2.0]
[1738183612235,0.37647,234.21,234.13,2.0]
[1738183612528,34.20202976,234.15,234.11,1.0]
[1738183612729,34.20202976,234.15,234.14,2.0]
[1738183613239,36.33732976,234.15,234.11,1.0]
[1738183613411,34.20202976,234.12,234.09,1.0]
[1738183613613,34.20202976,234.1,234.04,2.0]
[1738183613801,34.20202976,234.05,234.04,1.0]
[1738183614003,34.20202976,234.05,234.01,1.2776]
[1738183614227,34.20202976,234.03,234.02,1.0]
[1738183614409,0.12549,234.07,234.01,0.2776]
[1738183614410,0.12549,234.04,234.01,0.2776]
[1738183614609,0.12549,234.04,234.02,1.0]
[1738183615016,34.20202976,234.05,234.03,1.0]
[1738183615312,2.1359,234.09,234.07,1.0]
[1738183615704,2.1359,234.09,234.08,1.0]
[1738183615906,2.1359,234.09,234.07,1.0]
[1738183616113,2.1359,234.09,234.06,1.0]
[1738183617213,0.12549,234.06,234.01,0.2776]
[1738183617420,0.12549,234.06,234.03,1.0]
[1738183617421,34.20202976,234.04,234.03,1.0]
[1738183617639,34.20202976,234.04,234.01,1.2776]
[1738183617818,34.20202976,234.04,234.0,0.03]
[1738183618140,34.20202976,234.02,234.0,0.03]
[1738183619024,0.12549,234.01,234.0,0.03]
[1738183619229,2.26209,234.01,234.0,0.03]
[1738183619532,2.1366,234.01,234.0,0.03]
[1738183619743,2.26209,234.01,234.0,0.03]
[1738183619924,2.51307,234.01,234.0,0.03]
[1738183620108,2.26209,234.01,234.0,0.03]
[1738183620317,34.20202976,234.06,234.03,1.0]
[1738183620515,2.1361,234.07,234.06,2.0]
[1738183620816,2.136,234.09,234.08,2.0]
[1738183621018,6.6659,234.18,234.1,2.0]
[1738183621019,34.20202976,234.14,234.1,2.0]
[1738183621351,36.33732976,234.16,234.13,1.0]
[1738183621513,34.20202976,234.22,234.19,1.0]
[1738183621714,34.20202976,234.2,234.17,2.0]
[1738183621913,2.1345,234.24,234.07,0.12549]
[1738183621914,20.0,234.15,234.07,1.0]
[1738183622111,0.37647,234.14,234.06,1.0]
[1738183622314,17.10573,234.21,234.14,2.0]
[1738183622516,17.10573,234.21,234.0,22.03]
[1738183622517,17.10573,234.21,234.2,2.0]
[1738183623019,2.1337,234.33,234.29,1.0]
[1738183623216,6.0306,234.39,234.33,1.0]
[1738183623441,34.20202976,234.36,234.33,2.0]
[1738183623646,2.1332,234.39,234.33,2.0]
[1738183623851,0.063,234.41,234.33,2.0]
[1738183624012,2.1337,234.33,234.31,1.0]
[1738183624222,34.26502976,234.34,234.33,1.0]
[1738183624434,34.26502976,234.34,234.31,1.0]
[1738183624619,34.26502976,234.34,234.33,2.0]
[1738183624818,0.063,234.34,234.33,2.0]
[1738183625228,0.063,234.34,234.33,25.902374]
[1738183625430,0.063,234.41,234.4,2.0]
[1738183625646,0.063,234.41,234.4,60.10440376]
[1738183625834,34.26502976,234.58,234.57,1.0]
[1738183626144,34.26502976,234.58,234.56,1.0]
[1738183626324,36.39652976,234.58,234.57,2.0]
[1738183626528,0.063,234.58,234.57,2.0]
[1738183627514,0.063,234.58,234.57,3.63939559]
[1738183627715,34.20202976,234.75,234.72,2.0]
[1738183628224,34.26502976,234.73,234.72,2.0]
[1738183628423,0.063,234.73,234.72,2.0]
[1738183628643,36.39512976,234.73,234.72,1.0]
[1738183628842,0.12549,234.72,234.67,1.0]
[1738183629046,34.20202976,234.68,234.67,1.0]
[1738183629247,36.33252976,234.68,234.65,1.0]
[1738183629454,36.33252976,234.68,234.61,1.0]
[1738183629455,34.20202976,234.66,234.61,1.0]
[1738183629654,34.20202976,234.62,234.61,1.0]
[1738183629830,0.12549,234.61,234.59,1.0]
[1738183630147,0.25098,234.67,234.64,1.0]
[1738183630548,0.25098,234.67,234.62,1.0]
[1738183630549,0.37647,234.64,234.59,1.0]
[1738183630758,0.37647,234.64,234.54,1.0]
[1738183630922,34.20202976,234.62,234.61,1.0]
[1738183631242,34.20202976,234.66,234.65,1.0]
[1738183631433,34.20202976,234.66,234.65,2.0]
[1738183631965,0.12549,234.65,234.64,1.0]
[1738183632260,0.25098,234.64,234.57,1.0]
[1738183632565,0.12549,234.63,234.62,1.0]
[1738183632724,34.20202976,234.63,234.62,2.0]
[1738183632932,34.20202976,234.63,234.56,2.0]
[1738183633125,7.4572,234.67,234.61,1.0]
[1738183633126,2.1308,234.65,234.61,1.0]
[1738183633346,2.1308,234.65,234.63,1.0]
[1738183633851,2.1308,234.65,234.6,1.0]
[1738183634160,34.20202976,234.61,234.59,1.0]
[1738183634365,34.20202976,234.61,234.6,1.0]
[1738183634858,34.20202976,234.65,234.64,2.0]
[1738183635163,34.26502976,234.73,234.72,1.0]
[1738183635375,34.26502976,234.73,234.72,2.0]
[1738183635534,0.063,234.73,234.72,2.0]
[1738183637934,0.063,234.73,234.7,2.0]
[1738183638076,20.0,234.68,234.65,1.0]
[1738183638375,34.20202976,234.66,234.64,1.0]
[1738183638579,34.20202976,234.65,234.64,1.0]
[1738183639455,36.33282976,234.65,234.64,1.0]
[1738183640260,2.1303,234.71,234.69,1.0]
[1738183640769,0.25098,234.7,234.64,1.0]
[1738183640973,0.12549,234.7,234.68,1.0]
[1738183641259,0.12549,234.68,234.66,1.0]
[1738183641464,20.0,234.64,234.62,1.0]
[1738183641679,0.12549,234.59,234.57,1.0]
[1738183641861,34.20202976,234.59,234.58,1.0]
[1738183642074,7.4572,234.67,234.66,1.0]
[1738183642268,1.69543041,234.76,234.68,1.0]
[1738183642459,1.69543041,234.76,234.66,1.0]
[1738183642460,5.323,234.83,234.72,2.0]
[1738183642670,2.1295,234.8,234.72,2.0]
[1738183642863,2.1298,234.76,234.72,2.0]
[1738183643067,2.13,234.74,234.72,2.0]
[1738183643466,2.1301,234.72,234.7,1.0]
[1738183643782,34.26502976,234.73,234.72,1.0]
[1738183643981,20.0,234.7,234.66,1.0]
[1738183644185,20.0,234.69,234.68,1.0]
[1738183644479,0.12549,234.68,234.64,1.0]
[1738183644691,0.12549,234.65,234.62,1.0]
[1738183644867,34.32751976,234.63,234.58,1.0]
[1738183645059,0.12549,234.58,234.56,1.0]
[1738183645260,0.12549,234.56,234.5,1.0]
[1738183645486,36.33402976,234.52,234.5,1.0]
[1738183645674,0.12549,234.51,234.46,1.0]
[1738183645996,34.20202976,234.54,234.51,1.0]
[1738183646157,5.3261,234.69,234.63,1.0]
[1738183646781,2.1302,234.71,234.62,1.0]
[1738183646985,24.153354,234.7,234.57,1.0]
[1738183647172,34.20202976,234.58,234.55,1.0]
[1738183647481,34.20202976,234.58,234.49,0.12549]
[1738183647482,34.20202976,234.58,234.57,1.0]
[1738183647782,34.20202976,234.58,234.55,1.0]
[1738183647974,34.32751976,234.56,234.51,1.0]
[1738183648168,34.20202976,234.52,234.51,1.0]
[1738183648472,34.20202976,234.54,234.53,1.0]
[1738183648669,34.20202976,234.56,234.55,1.0]
[1738183649066,0.37647,234.55,234.5,1.0]
[1738183649273,34.20202976,234.51,234.48,1.0]
[1738183649781,34.20202976,234.49,234.46,1.0]
[1738183650087,34.20202976,234.55,234.54,1.0]
[1738183650400,36.33332976,234.59,234.58,1.0]
[1738183651380,34.20202976,234.59,234.58,1.0]
[1738183651594,36.33302976,234.63,234.62,1.0]
[1738183651971,36.33302976,234.63,234.49,1.12549]
[1738183651972,36.33302976,234.63,234.57,1.0]
[1738183652170,34.20202976,234.58,234.57,1.0]
[1738183652971,0.12549,234.61,234.57,1.0]
[1738183652972,54.20202976,234.6,234.57,1.0]
[1738183653173,54.20202976,234.6,234.59,1.0]
[1738183653595,34.20202976,234.62,234.61,1.0]
[1738183653790,34.20202976,234.68,234.67,1.0]
[1738183653997,34.20202976,234.72,234.69,1.0]
[1738183654163,0.063,234.73,234.72,1.0]
[1738183655285,0.063,234.73,234.72,24.902374]
[1738183655485,0.063,234.73,234.72,1.0]
[1738183655784,2.1301,234.72,234.68,1.0]
[1738183655985,34.20202976,234.69,234.68,1.0]
[1738183656175,34.20202976,234.69,234.63,1.0]
[1738183656375,34.20202976,234.65,234.63,1.0]
[1738183656796,34.20202976,234.67,234.66,1.0]
[1738183657597,36.33262976,234.67,234.66,1.0]
[1738183657782,36.33262976,234.67,234.6,0.63927712]
[1738183657783,0.12549,234.66,234.63,1.0]
[1738183657973,0.12549,234.66,234.62,1.0]
[1738183658174,34.20202976,234.65,234.62,1.0]
[1738183658374,1.063,234.82,234.62,1.0]
[1738183658375,0.063,234.82,234.7,1.0]
[1738183658577,0.063,234.82,234.72,1.0]
[1738183658887,2.13,234.74,234.72,1.0]
[1738183659270,34.26502976,234.73,234.72,1.0]
[1738183659994,34.26502976,234.73,234.63,34.32751976]
[1738183659995,7.4555,234.72,234.57,35.20202976]
[1738183660197,34.20202976,234.69,234.59,34.20202976]
[1738183660498,34.20202976,234.69,234.62,23.902374]
[1738183660692,34.20202976,234.69,234.63,0.63920085]
[1738183661192,34.26502976,234.73,234.64,0.63922172]
[1738183661388,2.1931,234.73,234.66,34.20202976]
[1738183661592,2.1931,234.73,234.65,23.902374]
[1738183661795,34.20202976,234.66,234.6,0.63916433]
[1738183662092,34.20202976,234.62,234.55,0.63929376]
[1738183662283,34.20202976,234.62,234.56,23.902374]
[1738183662689,34.20202976,234.62,234.58,23.902374]
[1738183662874,34.20202976,234.64,234.58,0.12549]
[1738183663197,0.12549,234.69,234.58,23.902374]
[1738183663198,34.20202976,234.66,234.58,23.902374]
[1738183663496,34.20202976,234.7,234.6,58.10440376]
[1738183663881,34.20202976,234.68,234.58,34.20202976]
[1738183664090,34.20202976,234.64,234.56,0.03]
[1738183664280,34.20202976,234.62,234.56,0.03]
[1738183664487,34.20202976,234.64,234.56,0.15549]
[1738183664782,34.20202976,234.59,234.56,0.03]
[1738183664995,34.32751976,234.57,234.56,0.03]
[1738183665192,34.20202976,234.57,234.56,0.03]
[1738183665400,34.20202976,234.59,234.56,0.03]
[1738183665609,63.95932976,234.72,234.56,0.0001]
[1738183665610,34.20202976,234.57,234.56,0.0001]
[1738183665897,34.20202976,234.57,234.38,2.706798]
[1738183665898,0.12549,234.51,234.34,34.20202976]
[1738183666081,34.20202976,234.44,234.34,34.20202976]
[1738183666416,34.20202976,234.46,234.36,58.74440614]
[1738183666705,7.4623,234.51,234.35,0.63986019]
[1738183666706,34.20202976,234.42,234.35,0.63986019]
[1738183666910,34.20202976,234.42,234.35,0.64002265]
[1738183667111,34.20202976,234.42,234.32,34.23202976]
[1738183667413,34.20202976,234.44,234.34,34.32751976]
[1738183667582,34.20202976,234.44,234.35,0.63994423]
[1738183667983,34.20202976,234.44,234.36,0.12549]
[1738183668210,34.20202976,234.44,234.38,0.12549]
[1738183668383,36.33452976,234.46,234.38,0.12549]
[1738183668912,34.20202976,234.43,234.34,34.20202976]
[1738183669087,34.20202976,234.45,234.35,34.84200556]
[1738183669290,34.20202976,234.45,234.32,4.2976]
[1738183669291,34.20202976,234.41,234.32,0.03]
[1738183669612,34.20202976,234.43,234.33,39.10949187]
[1738183669802,34.20202976,234.45,234.35,34.20202976]
[1738183670102,34.20202976,234.39,234.32,0.03]
[1738183670307,34.20202976,234.41,234.33,0.12549]
[1738183670610,34.20202976,234.49,234.4,0.12549]
[1738183670922,34.20202976,234.51,234.42,23.902374]
[1738183671213,34.20202976,234.51,234.43,0.63974356]
[1738183671585,34.20202976,234.51,234.43,34.84177332]
[1738183672089,2.1321,234.5,234.43,0.63975445]
[1738183672486,2.1321,234.5,234.42,23.902374]
[1738183672883,34.20202976,234.51,234.42,24.54218276]
[1738183673080,2.132,234.52,234.44,23.902374]
[1738183673305,34.20202976,234.51,234.44,24.54209996]
[1738183673496,5.3291,234.56,234.48,34.20202976]
[1738183673497,34.20202976,234.56,234.48,34.20202976]
[1738183673702,36.33352976,234.58,234.49,24.54194477]
[1738183673998,34.20202976,234.56,234.49,0.63957077]
[1738183674202,34.20202976,234.5,234.43,0.63965585]
[1738183674401,34.20202976,234.46,234.38,34.20202976]
[1738183674600,34.20202976,234.42,234.35,0.63989034]
[1738183674786,34.20202976,234.44,234.35,0.63989034]
[1738183674990,34.20202976,234.44,234.36,23.902374]
[1738183675184,34.20202976,234.44,234.35,0.63989034]
[1738183675583,34.20202976,234.44,234.37,24.027864]
[1738183675788,34.20202976,234.44,234.38,0.63986576]
[1738183675988,34.20202976,234.46,234.38,0.63986576]
[1738183676520,34.20202976,234.43,234.34,34.20202976]
[1738183676722,36.33462976,234.45,234.35,0.63997515]
[1738183676889,34.20202976,234.49,234.39,34.20202976]
[1738183677084,34.20202976,234.47,234.4,0.63979917]
[1738183677297,34.20202976,234.47,234.37,34.8418583]
[1738183677497,34.20202976,234.47,234.41,0.12549]
[1738183678208,2.1325,234.46,234.41,0.12549]
[1738183678600,34.20202976,234.47,234.41,0.12549]
[1738183678795,0.063,234.48,234.41,0.12549]
[1738183678997,0.063,234.48,234.43,23.902374]
[1738183679197,0.063,234.48,234.44,0.63976527]
[1738183679920,2.1953,234.48,234.39,34.20202976]
[1738183680094,34.26502976,234.48,234.41,0.12549]
[1738183680423,34.20202976,234.46,234.38,0.63975468]
[1738183680593,34.20202976,234.46,234.39,0.63989836]
[1738183680890,0.063,234.48,234.46,23.902374]
[1738183681095,0.063,234.48,234.47,58.74404633]
[1738183681292,0.063,234.48,234.47,95.32254609]
[1738183681490,2.1313,234.6,234.51,20.12549]
[1738183681712,34.20202976,234.59,234.52,0.63950621]
[1738183682020,34.20202976,234.65,234.56,23.902374]
[1738183682203,2.131,234.64,234.56,24.54175889]
[1738183682510,0.063,234.72,234.59,34.20202976]
[1738183682711,36.33222976,234.71,234.62,23.902374]
[1738183682890,36.33222976,234.71,234.63,0.63920467]
[1738183683095,0.063,234.72,234.65,34.20202976]
[1738183683304,0.063,234.72,234.67,58.10440376]
[1738183683497,0.063,234.72,234.68,0.63905188]
[1738183683701,34.20202976,234.71,234.63,34.20202976]
[1738183683903,0.063,234.72,234.65,58.10440376]
[1738183684127,0.063,234.72,234.7,0.12549]
[1738183684424,0.063,234.72,234.66,0.63901429]
[1738183684601,0.063,234.72,234.68,0.63901429]
[1738183684805,0.063,234.72,234.69,23.902374]
[1738183685103,0.063,234.72,234.71,55.20202976]
[1738183685317,0.063,234.73,234.72,1.0]
[1738183685502,0.063,234.73,234.72,0.63878032]
[1738183685905,0.063,234.73,234.72,25.79213432]
[1738183686116,0.063,234.73,234.72,24.66664432]
[1738183686317,0.063,234.73,234.72,25.66664432]
[1738183686497,0.063,234.73,234.72,24.79213432]
[1738183687015,0.063,234.73,234.72,24.41566432]
[1738183687219,0.063,234.73,234.72,24.79213432]
[1738183687405,0.063,234.82,234.75,20.25098]
[1738183687612,2.1922,234.82,234.76,34.84075834]
[1738183687808,0.063,234.82,234.76,34.84075834]
[1738183688016,0.063,234.82,234.79,23.902374]
[1738183688220,0.063,234.82,234.78,34.84074741]
[1738183688427,2.1923,234.82,234.74,0.63877254]
[1738183688720,1.0,234.69,234.65,0.63896715]
[1738183688923,2.0,234.69,234.63,0.63915922]
[1738183689109,1.0,234.77,234.63,0.63915922]
[1738183689307,1.0,234.76,234.73,34.20202976]
[1738183689522,1.0,234.78,234.74,24.41583806]
[1738183689706,1.0,234.8,234.74,24.41583806]
[1738183690024,1.0,234.79,234.74,24.41583806]
[1738183690202,0.063,234.82,234.76,23.902374]
[1738183690403,1.0,234.81,234.78,23.776884]
[1738183690707,0.063,234.82,234.78,23.776884]
[1738183690909,0.063,234.82,234.8,23.776884]
[1738183691100,0.063,234.82,234.81,58.99409055]
[1738183691300,0.063,234.82,234.81,58.74311055]
[1738183691522,0.063,234.82,234.81,58.99409055]
[1738183692416,0.063,234.82,234.81,58.74311055]
[1738183692602,0.063,234.82,234.81,59.11958055]
[1738183694331,0.063,234.82,234.81,0.76419679]